bitfinex-derivatives/quotes_BTCF0:USTF0_20241110
["timestamp","ask_amount","ask_price","bid_price","bid_amount"]
[1731244758924,0.03039167,79670.0,79661.0,0.3608]
[1731244761222,0.03039167,79670.0,79661.0,0.39814608]
[1731244761427,0.03039167,79670.0,79661.0,0.3608]
[1731244763923,0.03039167,79670.0,79661.0,0.39814608]
[1731244764118,0.03039167,79670.0,79661.0,0.3608]
[1731244764822,0.03039167,79670.0,79661.0,0.39814608]
[1731244765526,0.03039167,79670.0,79661.0,0.3608]
[1731244770822,0.03039167,79670.0,79662.0,0.0326]
[1731244771220,0.03039167,79670.0,79668.0,0.3608]
[1731244771416,9.167e-05,79670.0,79668.0,0.3608]
[1731244771826,9.167e-05,79670.0,79669.0,0.0301]
[1731244774130,9.167e-05,79670.0,79669.0,0.06744608]
[1731244774829,9.167e-05,79670.0,79669.0,0.0301]
[1731244778435,9.167e-05,79670.0,79669.0,0.07986973]
[1731244778741,0.0617,79694.0,79669.0,0.07986973]
[1731244778930,0.0617,79694.0,79683.0,0.3608]
[1731244779130,0.0617,79694.0,79684.0,0.109]
[1731244779131,0.1061791,79694.0,79684.0,0.109]
[1731244781636,0.0444791,79694.0,79683.0,0.3608]
[1731244781838,0.3608,79730.0,79693.0,0.3608]
[1731244782135,0.04626499,79716.0,79709.0,0.3608]
[1731244782337,0.04626499,79716.0,79709.0,0.4698]
[1731244785441,0.04626499,79716.0,79709.0,0.49489126]
[1731244789339,0.04516352,79737.0,79725.0,0.00321]
[1731244789546,0.0313,79750.0,79733.0,0.3608]
[1731244789743,0.0317,79749.0,79743.0,0.3608]
[1731244789940,0.07044162,79749.0,79743.0,0.31690232]
[1731244790139,0.07044162,79749.0,79741.0,0.3608]
[1731244791242,0.0643,79749.0,79741.0,0.3608]
[1731244792043,0.0643,79749.0,79748.0,0.3608]
[1731244792544,0.0643,79749.0,79741.0,0.3608]
[1731244797737,0.00635817,79773.0,79748.0,0.3608]
[1731244797944,0.3608,79794.0,79772.0,0.3608]
[1731244798143,0.70654171,79794.0,79772.0,0.3608]
[1731244798637,0.10872,79793.0,79772.0,0.3608]
[1731244799345,0.40872,79793.0,79772.0,0.3608]
[1731244799750,0.41284408,79794.0,79772.0,0.3608]
[1731244800047,0.41284408,79794.0,79779.0,0.3608]
[1731244800048,0.10872,79793.0,79779.0,0.3608]
[1731244800951,0.0554791,79792.0,79779.0,0.3608]
[1731244801849,0.10872,79791.0,79779.0,0.3608]
[1731244802043,0.0554791,79792.0,79779.0,0.3608]
[1731244802543,0.1641991,79792.0,79779.0,0.3608]
[1731244802848,0.3608,79783.0,79762.0,0.3608]
[1731244803043,0.3608,79771.0,79762.0,0.3608]
[1731244803247,0.3608,79771.0,79762.0,0.3109]
[1731244803248,0.0967,79770.0,79762.0,0.3109]
[1731244803550,0.13982,79770.0,79762.0,0.3109]
[1731244803747,0.0311,79770.0,79762.0,0.3109]
[1731244803949,0.10872,79780.0,79762.0,0.3109]
[1731244804946,0.03799514,79782.0,79774.0,0.3608]
[1731244805153,0.3608,79783.0,79774.0,0.3608]
[1731244805449,0.39812908,79783.0,79774.0,0.3608]
[1731244806254,0.39812908,79783.0,79775.0,0.00391789]
[1731244806452,0.39812908,79783.0,79774.0,0.3608]
[1731244806453,0.0326,79782.0,79774.0,0.3608]
[1731244808354,0.0380063,79787.0,79775.0,0.0039179]
[1731244808651,0.3608,79789.0,79776.0,0.11259783]
[1731244808950,0.0325,79810.0,79783.0,0.3608]
[1731244809247,0.03904605,79799.0,79793.0,0.3608]
[1731244809453,0.03904605,79799.0,79794.0,0.0322]
[1731244809454,0.00188087,79799.0,79794.0,0.0322]
[1731244809650,0.00188087,79799.0,79794.0,0.0642]
[1731244810853,0.00188087,79799.0,79793.0,0.3608]
[1731244811047,0.3608,79797.0,79775.0,0.3608]
[1731244811248,0.04171854,79796.0,79782.0,0.3608]
[1731244811453,0.04171854,79795.0,79775.0,0.3608]
[1731244811750,0.04171854,79794.0,79775.0,0.3608]
[1731244811958,0.3608,79787.0,79775.0,0.3608]
[1731244812148,0.07221854,79786.0,79775.0,0.3608]
[1731244812453,0.0305,79786.0,79775.0,0.3608]
[1731244812766,0.1492725,79785.0,79764.0,0.3608]
[1731244812943,0.0405925,79784.0,79764.0,0.3608]
[1731244813251,0.0405925,79783.0,79764.0,0.3608]
[1731244813452,0.3608,79780.0,79764.0,0.3608]
[1731244816153,0.0403177,79779.0,79764.0,0.3608]
[1731244816355,0.00124001,79780.0,79776.0,0.3608]
[1731244816554,0.0305,79786.0,79776.0,0.3608]
[1731244816855,0.04058669,79785.0,79776.0,0.3608]
[1731244817051,0.04058669,79784.0,79776.0,0.3608]
[1731244817252,0.3608,79782.0,79775.0,0.02507051]
[1731244817457,0.04061041,79781.0,79775.0,0.02507051]
[1731244817751,0.04061041,79780.0,79775.0,0.02507051]
[1731244817958,0.3608,79782.0,79775.0,0.02507051]
[1731244817959,0.0404175,79779.0,79775.0,0.02507051]
[1731244818258,0.0404175,79778.0,79775.0,0.02507051]
[1731244818455,0.0404175,79777.0,79775.0,0.02507051]
[1731244818655,0.0404175,79776.0,79775.0,0.02507051]
[1731244818953,0.3608,79822.0,79775.0,0.70111051]
[1731244819154,0.3608,79822.0,79798.0,0.3608]
[1731244819345,0.03792756,79810.0,79798.0,0.3608]
[1731244820355,0.04241572,79799.0,79798.0,0.3608]
[1731244820547,0.04241572,79799.0,79792.0,0.3608]
[1731244820758,0.04053485,79793.0,79790.0,0.3608]
[1731244821156,0.00188087,79799.0,79790.0,0.3608]
[1731244821459,0.04053485,79794.0,79790.0,0.3608]
[1731244822153,0.04053485,79793.0,79790.0,0.3608]
[1731244825453,0.00188087,79799.0,79792.0,0.3608]
[1731244825652,0.04053485,79794.0,79792.0,0.3608]
[1731244827156,0.00188087,79799.0,79792.0,0.3608]
[1731244827355,0.04053485,79798.0,79797.0,0.3608]
[1731244831464,0.00188087,79799.0,79797.0,0.3608]
[1731244831950,0.04053485,79799.0,79797.0,0.46932]
[1731244832759,0.04053485,79799.0,79797.0,0.3608]
[1731244832959,0.04053485,79799.0,79798.0,0.10852]
[1731244833858,0.1,79800.0,79798.0,0.10852]
[1731244834056,0.14053485,79800.0,79798.0,0.10852]
[1731244834363,0.1,79800.0,79799.0,0.37596]
[1731244834566,0.0327,79823.0,79799.0,0.40676]
[1731244834758,0.07323485,79823.0,79822.0,0.3608]
[1731244835360,0.0327,79823.0,79822.0,0.3608]
[1731244838166,0.07323485,79823.0,79822.0,0.3608]
[1731244838555,0.07323485,79823.0,79814.0,0.3608]
[1731244838867,0.04053485,79815.0,79813.0,0.3608]
[1731244839168,0.0303,79822.0,79813.0,0.3608]
[1731244839468,0.04053485,79814.0,79813.0,0.3608]
[1731244842364,0.04053485,79814.0,79806.0,0.3608]
[1731244842561,0.04053485,79807.0,79806.0,0.3608]
[1731244843461,0.04053485,79807.0,79803.0,0.00187965]
[1731244843671,0.03625826,79814.0,79805.0,0.3608]
[1731244843866,0.04053485,79806.0,79805.0,0.3608]
[1731244844675,0.04053485,79806.0,79804.0,0.3608]
[1731244844978,0.39830704,79817.0,79804.0,0.3608]
[1731244845160,0.04053485,79805.0,79804.0,0.3608]
[1731244845566,0.10313985,79805.0,79804.0,0.3608]
[1731244847462,0.10313985,79805.0,79804.0,0.423406]
[1731244848475,0.10313985,79805.0,79804.0,0.3608]
[1731244849167,0.15131556,79805.0,79804.0,0.3608]
[1731244849577,0.10313985,79805.0,79804.0,0.423406]
[1731244850078,0.10313985,79805.0,79804.0,0.3608]
[1731244850275,0.15132281,79805.0,79804.0,0.3608]
[1731244850575,0.10313985,79805.0,79804.0,0.3608]
[1731244850772,0.062605,79805.0,79804.0,0.3608]
[1731244850972,0.062605,79805.0,79804.0,0.423406]
[1731244851180,0.062605,79805.0,79804.0,0.3608]
[1731244851374,0.10056979,79805.0,79804.0,0.46932]
[1731244853963,0.062602,79810.0,79804.0,0.46932]
[1731244854165,0.10313785,79809.0,79808.0,0.062602]
[1731244855177,0.062598,79814.0,79810.0,0.062601]
[1731244855373,0.10313385,79813.0,79812.0,0.3608]
[1731244857673,0.1518622,79813.0,79812.0,0.3608]
[1731244858478,0.04218784,79818.0,79812.0,0.3608]
[1731244858687,0.04218784,79818.0,79813.0,0.062599]
[1731244858688,0.04053485,79814.0,79813.0,0.062599]
[1731244858984,0.04053485,79814.0,79813.0,0.171079]
[1731244860184,0.10313285,79814.0,79813.0,0.10848]
[1731244860579,0.04053485,79814.0,79813.0,0.171079]
[1731244862177,0.10313285,79814.0,79813.0,0.062599]
[1731244862383,0.062599,79813.0,79812.0,0.3608]
[1731244862681,0.10313385,79813.0,79812.0,0.46928]
[1731244863481,0.10313385,79813.0,79812.0,0.3608]
[1731244863681,0.04053485,79813.0,79808.0,0.10848]
[1731244863886,0.062602,79809.0,79808.0,0.10848]
[1731244864188,0.10313685,79809.0,79808.0,0.10848]
[1731244865181,0.10313685,79809.0,79803.0,0.3608]
[1731244865182,0.062606,79804.0,79803.0,0.3608]
[1731244865381,0.062612,79796.0,79795.0,0.3608]
[1731244865586,0.062612,79796.0,79795.0,0.423413]
[1731244866183,0.062612,79796.0,79795.0,0.3608]
[1731244866390,0.062612,79796.0,79795.0,0.46928]
[1731244867387,0.062612,79796.0,79795.0,0.531893]
[1731244867786,0.10314685,79796.0,79795.0,0.3608]
[1731244868287,0.04053485,79796.0,79795.0,0.3608]
[1731244868488,0.062608,79802.0,79799.0,0.06261]
[1731244868686,0.04053485,79800.0,79799.0,0.06261]
[1731244871304,0.04053485,79800.0,79799.0,0.17109]
[1731244872287,0.04053485,79800.0,79799.0,0.10848]
[1731244872490,0.10314385,79800.0,79799.0,0.10848]
[1731244872694,0.062612,79796.0,79795.0,0.3608]
[1731244872890,0.062612,79796.0,79795.0,0.46928]
[1731244874688,0.062612,79796.0,79795.0,0.3608]
[1731244875788,0.03754903,79796.0,79795.0,0.3608]
[1731244876191,0.43888388,79796.0,79790.0,0.00013344]
[1731244876394,0.10315085,79791.0,79790.0,0.00013344]
[1731244883896,0.10315085,79791.0,79790.0,0.02519923]
[1731244884607,0.13992883,79791.0,79790.0,0.02519923]
[1731244887019,0.09939398,79791.0,79790.0,0.02519923]
[1731244887209,0.3608,79804.0,79790.0,0.13363923]
[1731244887404,0.062614,79794.0,79792.0,0.062615]
[1731244887708,0.062615,79793.0,79791.0,0.3608]
[1731244890207,0.3608,79819.0,79791.0,0.3608]
[1731244890410,0.062603,79808.0,79806.0,0.3608]
[1731244890906,0.07311522,79807.0,79806.0,0.3608]
[1731244891212,0.03258037,79807.0,79806.0,0.3608]
[1731244891413,0.00188037,79807.0,79806.0,0.423404]
[1731244891609,0.00188037,79807.0,79806.0,0.3608]
[1731244893621,0.00188037,79807.0,79806.0,0.7216]
[1731244893910,0.062597,79816.0,79811.0,0.0626]
[1731244894110,0.062597,79816.0,79815.0,0.3608]
[1731244894305,0.10313185,79816.0,79815.0,0.3608]
[1731244896209,0.04053485,79816.0,79815.0,0.3608]
[1731244903919,0.062604,79807.0,79806.0,0.4692]
[1731244904122,0.062604,79807.0,79804.0,0.1084]
[1731244904123,0.062605,79805.0,79804.0,0.1084]
[1731244904319,0.10313985,79805.0,79804.0,0.4692]
[1731244904931,0.10486047,79805.0,79804.0,0.4692]
[1731244907726,0.04225547,79805.0,79804.0,0.4692]
[1731244908028,0.00172062,79805.0,79804.0,0.4692]
[1731244909019,0.10486047,79805.0,79804.0,0.3608]
[1731244909221,0.10486047,79805.0,79804.0,0.4692]
[1731244913722,0.10486047,79805.0,79804.0,0.3608]
[1731244914829,0.04225547,79805.0,79804.0,0.3608]
[1731244916530,0.04225547,79805.0,79804.0,0.423406]
[1731244917636,0.04225547,79805.0,79804.0,0.3608]
[1731244917930,0.00172062,79805.0,79804.0,0.3608]
[1731244921936,0.00172062,79805.0,79804.0,0.423406]
[1731244922329,0.00172062,79805.0,79804.0,0.4484674]
[1731244924432,0.00172062,79805.0,79804.0,0.8243874]
[1731244926337,0.00172062,79805.0,79804.0,0.4484674]
[1731244927742,0.00172062,79805.0,79804.0,0.8092674]
[1731244929238,0.00172062,79805.0,79804.0,0.84650213]
[1731244929432,0.00172062,79805.0,79804.0,1.1851874]
[1731244930436,0.00172062,79805.0,79804.0,0.8092674]
[1731244930642,0.00172062,79805.0,79804.0,1.1851874]
[1731244931040,0.00172062,79805.0,79804.0,1.2223741]
[1731244931230,0.00172062,79805.0,79804.0,1.1851874]
[1731244932737,0.00172062,79805.0,79804.0,1.2102488]
[1731244933040,0.00172062,79805.0,79804.0,1.24742676]
[1731244933240,0.00172062,79805.0,79804.0,1.54742676]
[1731244933543,0.0049,79818.0,79804.0,1.69749382]
[1731244933843,0.0049,79818.0,79817.0,0.784196]
[1731244934031,0.0049,79818.0,79817.0,0.892516]
[1731244934236,0.062577,79841.0,79837.0,0.06258]
[1731244934540,0.0304,79847.0,79840.0,0.3608]
[1731244935040,0.04053485,79841.0,79840.0,0.3608]
[1731244936333,0.04053485,79841.0,79840.0,0.46912]
[1731244938741,0.04053485,79841.0,79840.0,0.3608]
[1731244938940,0.04053485,79841.0,79807.0,0.062603]
[1731244938941,0.062583,79833.0,79832.0,0.3608]
[1731244939349,0.10311785,79833.0,79832.0,0.3608]
[1731244940142,0.062586,79829.0,79828.0,0.10832]
[1731244940442,0.10312085,79829.0,79828.0,0.10832]
[1731244942947,0.07806824,79829.0,79828.0,0.10832]
[1731244945134,0.062588,79827.0,79826.0,0.02505184]
[1731244945334,0.10312285,79827.0,79826.0,0.13337184]
[1731244946558,0.10312285,79827.0,79823.0,0.3608]
[1731244946559,0.06259,79825.0,79823.0,0.3608]
[1731244946845,0.07253485,79824.0,79823.0,0.3608]
[1731244947845,0.04053485,79824.0,79823.0,0.3608]
[1731244948649,0.0305,79832.0,79823.0,0.3608]
[1731244948844,0.0305,79832.0,79831.0,0.3608]
[1731244949342,0.07103485,79832.0,79831.0,0.3608]
[1731244949545,0.07103485,79832.0,79831.0,0.469]
[1731244953256,0.04053485,79832.0,79831.0,0.469]
[1731244953444,0.0626,79843.0,79840.0,0.062577]
[1731244953640,0.0626,79843.0,79842.0,0.3608]
[1731244954152,0.10313485,79843.0,79842.0,0.3608]
[1731244954749,0.16570985,79843.0,79842.0,0.3608]
[1731244969454,0.10313485,79843.0,79838.0,0.3608]
[1731244969657,0.062579,79839.0,79838.0,0.3608]
[1731244969955,0.10311385,79839.0,79838.0,0.3608]
[1731244986358,0.04053485,79839.0,79838.0,0.3608]
[1731244986559,0.062572,79848.0,79845.0,0.062574]
[1731244986759,0.062572,79848.0,79847.0,0.3608]
[1731244987260,0.10310685,79848.0,79847.0,0.531452]
[1731244987566,0.062557,79868.0,79848.0,0.062571]
[1731244987770,0.11438208,79867.0,79865.0,0.3608]
[1731244988069,0.062557,79867.0,79865.0,0.3608]
[1731244988375,0.062563,79859.0,79858.0,0.3608]
[1731244988560,0.3608,79870.0,79847.0,0.39828642]
[1731244988561,0.062566,79855.0,79854.0,0.3608]
[1731244988763,0.10310085,79855.0,79854.0,0.3608]
[1731244989566,0.04053485,79855.0,79854.0,0.3608]
[1731244990460,0.062572,79848.0,79847.0,0.00016141]
[1731244990665,0.10310685,79848.0,79847.0,0.00016141]
[1731244992970,0.10310685,79848.0,79831.0,0.3608]
[1731244992971,0.423372,79848.0,79831.0,0.3608]
[1731244993168,0.062584,79832.0,79823.0,0.36144]
[1731244993467,0.06259,79824.0,79823.0,0.3608]
[1731244993671,0.06259,79824.0,79818.0,0.02504616]
[1731244994074,0.00011112,79823.0,79818.0,0.02504616]
[1731244994869,0.00011112,79823.0,79816.0,0.10808]
[1731244995072,0.062596,79817.0,79816.0,0.10808]
[1731244996668,0.00011112,79823.0,79816.0,0.10808]
[1731244996669,0.00011112,79823.0,79822.0,0.062592]
[1731244996877,0.03665543,79841.0,79822.0,0.73664]
[1731244997076,0.0327,79853.0,79839.0,0.3608]
[1731244997077,0.062578,79840.0,79839.0,0.3608]
[1731244997274,0.3608,79852.0,79829.0,0.10808]
[1731244997472,0.062585,79831.0,79823.0,0.0302]
[1731244997670,0.0301,79839.0,79824.0,0.10808]
[1731244997671,0.062587,79829.0,79824.0,0.10808]
[1731244998076,5.029e-05,79830.0,79828.0,0.062587]
[1731244998573,5.029e-05,79830.0,79824.0,0.10808]
[1731244998574,5.029e-05,79830.0,79826.0,0.062589]
[1731244999071,5.029e-05,79830.0,79829.0,0.423386]
[1731245000182,5.029e-05,79830.0,79829.0,0.784186]
[1731245001784,5.029e-05,79830.0,79829.0,0.892266]
[1731245003380,5.029e-05,79830.0,79829.0,0.92996124]
[1731245008384,5.029e-05,79830.0,79829.0,1.30576124]
[1731245010791,5.029e-05,79830.0,79829.0,0.92984124]
[1731245014683,5.029e-05,79830.0,79829.0,0.95489479]
[1731245016088,0.06263629,79830.0,79829.0,0.74665355]
[1731245016282,0.06263629,79830.0,79829.0,0.13301355]
[1731245016684,0.06263629,79830.0,79829.0,0.02505355]
[1731245017685,0.09905516,79830.0,79829.0,0.02505355]
[1731245018490,0.03646916,79830.0,79829.0,0.02505355]
[1731245018885,5.029e-05,79830.0,79829.0,0.02505355]
[1731245021785,5.029e-05,79830.0,79829.0,0.06160813]
[1731245021988,5.029e-05,79830.0,79829.0,0.02505355]
[1731245022691,5.029e-05,79830.0,79829.0,0.0501071]
[1731245024697,5.029e-05,79830.0,79829.0,0.1580671]
[1731245028495,5.029e-05,79830.0,79829.0,0.5338671]
[1731245028801,0.0319,79844.0,79829.0,0.5338671]
[1731245029097,0.0319,79844.0,79843.0,0.7216]
[1731245029300,0.0327,79845.0,79843.0,0.82956]
[1731245030311,0.0301,79850.0,79843.0,0.86744808]
[1731245031404,0.0301,79850.0,79843.0,0.89249723]
[1731245034602,0.0301,79850.0,79843.0,0.78453723]
[1731245034801,0.0644,79849.0,79843.0,0.78453723]
[1731245034997,0.0644,79849.0,79844.0,0.10796]
[1731245035399,0.0644,79849.0,79843.0,0.74728915]
[1731245035597,0.0644,79849.0,79843.0,0.74664915]
[1731245037123,0.033,79849.0,79843.0,0.74664915]
[1731245037606,0.0301,79850.0,79843.0,0.74664915]
[1731245039398,0.0311,79864.0,79843.0,0.74664915]
[1731245039608,0.0322,79863.0,79843.0,0.02504915]
[1731245039796,0.0322,79863.0,79862.0,0.7216]
[1731245039999,0.0322,79863.0,79862.0,0.82944]
[1731245040602,0.0322,79863.0,79862.0,0.7216]
[1731245040804,0.0322,79863.0,79862.0,0.82944]
[1731245043809,0.0322,79863.0,79862.0,0.8294]
[1731245044815,0.0322,79863.0,79862.0,0.85444319]
[1731245045407,0.0322,79863.0,79862.0,0.74664319]
[1731245045907,0.0322,79863.0,79862.0,0.85444319]
[1731245046306,0.0322,79863.0,79862.0,0.74664319]
[1731245047513,0.0322,79863.0,79862.0,0.38584319]
[1731245050213,1.18144,79863.0,79832.0,0.3608]
[1731245050520,0.11011579,79862.0,79841.0,0.3608]
[1731245050718,0.3608,79855.0,79832.0,0.3608]
[1731245050915,0.05148705,79854.0,79832.0,0.3608]
[1731245051113,0.05148705,79854.0,79848.0,0.3608]
[1731245051414,0.0322,79863.0,79848.0,0.3608]
[1731245051619,0.15982525,79862.0,79848.0,0.3608]
[1731245051818,0.1078,79862.0,79848.0,0.3608]
[1731245052324,0.05210236,79861.0,79848.0,0.3608]
[1731245052622,0.3,79861.0,79848.0,0.3608]
[1731245053021,0.00639877,79860.0,79848.0,0.3608]
[1731245053223,0.05201578,79859.0,79848.0,0.3608]
[1731245053418,0.30613518,79860.0,79848.0,0.3608]
[1731245053614,0.3,79860.0,79848.0,0.3608]
[1731245053814,0.3608,79861.0,79848.0,0.3608]
[1731245054113,0.3,79861.0,79848.0,0.3608]
[1731245054513,0.0322,79863.0,79848.0,0.3608]
[1731245055031,0.0322,79863.0,79840.0,0.0316]
[1731245055032,0.0322,79863.0,79847.0,0.3608]
[1731245057321,0.06140225,79865.0,79860.0,0.3608]
[1731245057322,0.03635812,79865.0,79860.0,0.3608]
[1731245057524,0.00187839,79879.0,79860.0,0.3608]
[1731245057525,0.0927,79878.0,79860.0,0.3608]
[1731245058424,0.05078738,79868.0,79860.0,0.3608]
[1731245058617,0.3608,79874.0,79860.0,0.3608]
[1731245058825,0.05086372,79873.0,79860.0,0.3608]
[1731245059014,0.05086372,79872.0,79860.0,0.3608]
[1731245059322,0.05081626,79871.0,79860.0,0.3608]
[1731245059520,0.05081626,79870.0,79860.0,0.3608]
[1731245059820,0.05080409,79869.0,79860.0,0.3608]
[1731245060127,0.3608,79874.0,79860.0,0.3608]
[1731245060425,0.05080409,79873.0,79860.0,0.3608]
[1731245060619,0.05080409,79872.0,79860.0,0.3608]
[1731245060817,0.05080409,79871.0,79860.0,0.3608]
[1731245061122,0.05080409,79870.0,79860.0,0.3608]
[1731245061315,0.10886428,79869.0,79860.0,0.3608]
[1731245061517,0.10886428,79868.0,79860.0,0.3608]
[1731245061712,0.05090541,79867.0,79860.0,0.3608]
[1731245062021,0.05090541,79866.0,79860.0,0.3608]
[1731245062324,0.05090541,79865.0,79860.0,0.3608]
[1731245062515,0.32504486,79876.0,79860.0,0.3608]
[1731245062516,0.02504486,79876.0,79860.0,0.3608]
[1731245062726,0.3608,79864.0,79842.0,0.3608]
[1731245062925,0.05071268,79863.0,79843.0,0.05564915]
[1731245063118,0.05068591,79862.0,79852.0,0.3608]
[1731245063318,0.05068591,79861.0,79851.0,0.3608]
[1731245063620,0.03,79863.0,79851.0,0.3608]
[1731245063621,0.05068591,79860.0,79851.0,0.3608]
[1731245063823,0.064,79862.0,79851.0,0.3608]
[1731245064020,0.10752178,79861.0,79851.0,0.3608]
[1731245064324,0.05027417,79860.0,79851.0,0.3608]
[1731245064626,0.10778016,79859.0,79843.0,0.16344915]
[1731245064927,0.10753494,79858.0,79843.0,0.16344915]
[1731245065117,0.05027417,79857.0,79849.0,0.3608]
[1731245065313,0.05027417,79856.0,79843.0,0.16344915]
[1731245065512,0.05027417,79855.0,79849.0,0.3608]
[1731245065717,0.05027417,79854.0,79849.0,0.3608]
[1731245065919,0.064,79862.0,79849.0,0.3608]
[1731245065920,0.05027417,79853.0,79849.0,0.3608]
[1731245066127,0.05027417,79852.0,79849.0,0.3608]
[1731245066317,0.064,79862.0,79849.0,0.3608]
[1731245066519,0.05038266,79861.0,79849.0,0.3608]
[1731245066721,0.05038266,79860.0,79849.0,0.3608]
[1731245066919,0.05038266,79859.0,79849.0,0.3608]
[1731245067134,0.05038266,79858.0,79849.0,0.3608]
[1731245067332,0.05038266,79857.0,79849.0,0.3608]
[1731245067539,0.05038266,79856.0,79849.0,0.3608]
[1731245067739,0.05038266,79855.0,79849.0,0.3608]
[1731245067942,0.064,79862.0,79849.0,0.3608]
[1731245068143,0.05034276,79861.0,79849.0,0.3608]
[1731245068335,0.064,79862.0,79849.0,0.3608]
[1731245068536,0.364,79862.0,79849.0,0.3608]
[1731245068839,0.3608,79857.0,79845.0,0.3608]
[1731245069041,0.3608,79857.0,79843.0,0.02504915]
[1731245069042,0.3608,79849.0,79843.0,0.02504915]
[1731245070343,0.3608,79847.0,79843.0,0.02504915]
[1731245070542,0.0627,79846.0,79843.0,0.02504915]
[1731245070736,0.10772,79845.0,79843.0,0.02504915]
[1731245071042,0.48344,79845.0,79843.0,0.02504915]
[1731245071343,0.37572,79844.0,79843.0,0.02504915]
[1731245071533,0.37572,79844.0,79823.0,0.3608]
[1731245071739,0.3608,79835.0,79823.0,0.3608]
[1731245071939,0.3608,79835.0,79816.0,0.3608]
[1731245072440,0.10772,79834.0,79816.0,0.3608]
[1731245074544,0.3758,79832.0,79813.0,0.062]
[1731245074845,0.3758,79831.0,79813.0,0.062]
[1731245075044,0.3758,79833.0,79813.0,0.062]
[1731245075242,0.408,79833.0,79813.0,0.062]
[1731245075436,0.3758,79832.0,79813.0,0.062]
[1731245075849,0.3758,79831.0,79813.0,0.062]
[1731245076353,0.3758,79830.0,79813.0,0.062]
[1731245076538,0.3758,79830.0,79829.0,0.0418766]
[1731245079450,0.3758,79830.0,79816.0,0.3608]
[1731245079651,0.3608,79825.0,79817.0,0.02504915]
[1731245084153,0.39740098,79825.0,79817.0,0.02504915]
[1731245085349,0.39740098,79825.0,79818.0,0.02504915]
[1731245090059,0.39740098,79825.0,79821.0,0.02504915]
[1731245093153,0.03660098,79825.0,79822.0,0.02504915]
[1731245093348,0.13281881,79831.0,79822.0,0.02504915]
[1731245093756,0.02505881,79831.0,79822.0,0.02504915]
[1731245093953,0.0304,79840.0,79830.0,0.02504915]
[1731245094256,0.0304,79840.0,79823.0,0.3608]
[1731245094257,0.39758669,79835.0,79834.0,0.02504915]
[1731245096852,0.39758669,79835.0,79822.0,0.10776]
[1731245097157,0.39758669,79835.0,79829.0,0.02504915]
[1731245097661,0.39758669,79835.0,79818.0,0.10764]
[1731245097662,0.04904809,79834.0,79818.0,0.10764]
[1731245097863,0.04904809,79833.0,79825.0,0.02504915]
[1731245098161,0.04904809,79832.0,79825.0,0.02504915]
[1731245098357,0.04904809,79831.0,79825.0,0.02504915]
[1731245098672,0.0318,79834.0,79825.0,0.02504915]
[1731245099357,0.3608,79827.0,79825.0,0.02504915]
[1731245101251,0.04874279,79826.0,79825.0,0.02504915]
[1731245101958,0.40954279,79826.0,79825.0,0.02504915]
[1731245102157,0.3608,79826.0,79825.0,0.02504915]
[1731245103064,0.40935044,79826.0,79825.0,0.02504915]
[1731245103254,0.40935044,79826.0,79813.0,0.062]
[1731245103456,0.04855044,79825.0,79818.0,0.02504915]
[1731245103651,0.04855044,79824.0,79818.0,0.02504915]
[1731245103854,0.062592,79822.0,79813.0,0.062]
[1731245104165,0.04855044,79821.0,79818.0,0.02504915]
[1731245104363,0.04855044,79820.0,79818.0,0.02504915]
[1731245104563,0.11114444,79819.0,79818.0,0.02504915]
[1731245105766,0.062594,79819.0,79818.0,0.02504915]
[1731245105963,0.423394,79819.0,79818.0,0.02504915]
[1731245107666,0.423394,79819.0,79813.0,0.0311]
[1731245107667,0.3608,79819.0,79813.0,0.0311]
[1731245107867,0.3608,79819.0,79815.0,0.02504915]
[1731245108060,0.0318,79818.0,79815.0,0.02504915]
[1731245108361,0.0318,79818.0,79812.0,0.0001437]
[1731245108362,0.062599,79813.0,79812.0,0.0001437]
[1731245109770,0.062599,79813.0,79812.0,7e-07]
[1731245109971,0.11034544,79813.0,79812.0,7e-07]
[1731245110363,0.11021282,79813.0,79812.0,7e-07]
[1731245110562,0.438479,79813.0,79812.0,7e-07]
[1731245110868,0.438479,79813.0,79804.0,0.0501228]
[1731245110869,0.062605,79805.0,79804.0,5e-07]
[1731245111068,0.784205,79805.0,79804.0,5e-07]
[1731245111462,0.83131257,79805.0,79804.0,5e-07]
[1731245111655,0.784205,79805.0,79804.0,5e-07]
[1731245111856,0.83131109,79805.0,79804.0,5e-07]
[1731245112567,0.83131109,79805.0,79788.0,0.3608]
[1731245112568,0.062611,79798.0,79797.0,0.0040005]
[1731245112758,0.423411,79798.0,79797.0,5e-07]
[1731245113372,0.062611,79798.0,79797.0,0.02504965]
[1731245121068,0.062611,79798.0,79797.0,0.02504915]
[1731245126165,0.062608,79801.0,79797.0,0.38584915]
[1731245126367,0.062608,79801.0,79798.0,0.0964]
[1731245126671,0.062608,79801.0,79800.0,0.02504915]
[1731245131781,0.10004941,79801.0,79791.0,0.0621]
[1731245131970,0.062609,79800.0,79799.0,0.02504915]
[1731245133078,0.062616,79791.0,79790.0,0.02506579]
[1731245133275,0.423416,79791.0,79790.0,0.02506579]
[1731245134276,0.46381559,79791.0,79790.0,0.00928964]
[1731245134675,0.03744141,79801.0,79790.0,0.03433879]
[1731245134881,0.062608,79802.0,79800.0,0.02504915]
[1731245135175,0.06261,79799.0,79797.0,0.3608]
[1731245135374,0.06261,79799.0,79797.0,0.02504915]
[1731245136974,0.06261,79799.0,79798.0,0.02504915]
[1731245137172,0.3608,79809.0,79798.0,0.02504915]
[1731245137368,0.062601,79811.0,79808.0,0.02504915]
[1731245137570,0.062601,79811.0,79802.0,0.062607]
[1731245137571,0.062601,79811.0,79810.0,0.02504915]
[1731245142975,0.00012147,79813.0,79812.0,0.0626]
[1731245143285,0.00012147,79813.0,79812.0,0.02504915]
[1731245143584,0.06272047,79813.0,79812.0,0.13260915]
[1731245144185,0.00012147,79813.0,79812.0,0.13260915]
[1731245144685,0.00012147,79813.0,79812.0,0.19520915]
[1731245146886,0.00012147,79813.0,79812.0,0.13260915]
[1731245147095,0.06272047,79813.0,79812.0,0.13260915]
[1731245147791,0.00012147,79813.0,79812.0,0.13256915]
[1731245147986,0.00012147,79813.0,79812.0,0.02504915]
[1731245148388,0.00012147,79813.0,79812.0,0.05010803]